bitfinex/quotes_ETHUSD_20241024
["timestamp","ask_amount","ask_price","bid_price","bid_amount"]
[1729782191615,3.96283,2523.5,2523.1,0.48359243]
[1729782192450,3.96187,2524.1,2523.5,3.96262]
[1729782192652,3.96214,2523.9,2523.5,0.55]
[1729782192822,3.96244,2523.7,2523.3,0.8007]
[1729782193011,3.96271,2523.6,2523.3,0.8007]
[1729782193551,3.96256,2523.7,2523.3,0.8007]
[1729782193747,3.96276,2523.5,2523.3,0.8007]
[1729782194267,0.8066,2523.8,2523.4,0.55]
[1729782194268,3.96234,2523.8,2523.4,0.55]
[1729782194557,3.96244,2523.7,2523.4,1.53086732]
[1729782194958,3.96247,2523.7,2523.3,0.8007]
[1729782195247,3.96198,2524.0,2523.3,0.8007]
[1729782195559,3.96276,2523.5,2523.3,0.8007]
[1729782196241,3.96266,2523.6,2523.3,0.8007]
[1729782196446,3.9632,2523.3,2523.0,0.758]
[1729782196747,3.96292,2523.4,2523.0,0.758]
[1729782196952,3.96283,2523.5,2523.1,0.55]
[1729782197160,3.96259,2523.6,2523.1,4.59256344]
[1729782197448,3.96246,2523.7,2523.1,0.62926344]
[1729782197755,3.96246,2523.7,2523.2,3.96312]
[1729782197908,7.92502,2523.7,2523.1,4.51335]
[1729782198111,3.96261,2523.6,2523.3,0.55]
[1729782198354,3.96278,2523.5,2523.3,0.55]
[1729782198523,3.96262,2523.6,2523.3,0.55]
[1729782199059,3.96291,2523.4,2523.1,0.55]
[1729782199214,3.96267,2523.6,2523.1,0.62925808]
[1729782199415,3.96267,2523.6,2523.2,0.53506881]
[1729782199858,3.96282,2523.5,2523.2,0.53506881]
[1729782200087,3.96282,2523.5,2523.1,0.55]
[1729782200215,3.96291,2523.4,2523.1,0.55]
[1729782200852,3.96266,2523.6,2523.1,0.55]
[1729782201055,3.96266,2523.6,2523.1,4.51333]
[1729782201237,3.96237,2523.8,2523.3,4.51294]
[1729782201238,3.96234,2523.8,2523.3,4.51294]
[1729782201448,3.96226,2523.9,2523.5,0.55]
[1729782201814,3.96253,2523.7,2523.4,0.7546]
[1729782202213,4.7905,2524.0,2523.4,1.31952218]
[1729782202524,3.9624,2523.8,2523.4,1.31952218]
[1729782203355,3.96254,2523.7,2523.4,1.31952218]
[1729782203558,3.96223,2523.9,2523.4,1.31952218]
[1729782203920,4.75501,2524.2,2523.4,1.31952218]
[1729782203921,3.96252,2523.7,2523.4,1.31952218]
[1729782204120,3.96264,2523.6,2523.4,1.31952218]
[1729782204318,3.96264,2523.6,2523.4,0.7546]
[1729782204554,3.96252,2523.7,2523.4,0.7546]
[1729782205735,3.96219,2523.9,2523.5,0.55]
[1729782206734,3.96236,2523.8,2523.5,0.55]
[1729782206951,3.96219,2523.9,2523.5,0.55]
[1729782207257,3.96255,2523.7,2523.4,0.7546]
[1729782208633,3.96186,2524.1,2523.4,0.7546]
[1729782208865,3.9626,2523.6,2523.4,0.7546]
[1729782209634,3.96245,2523.7,2523.4,0.7546]
[1729782209834,7.92473,2523.8,2523.4,0.7546]
[1729782210273,3.96236,2523.8,2523.4,0.7546]
[1729782210473,7.92473,2523.8,2523.4,0.7546]
[1729782210785,3.96213,2523.9,2523.5,0.55]
[1729782210936,3.96209,2524.0,2523.5,0.55]
[1729782210937,3.96209,2524.0,2523.5,4.59199259]
[1729782211142,3.96172,2524.2,2523.8,0.7565]
[1729782211446,3.96144,2524.4,2523.9,0.55]
[1729782211651,3.96113,2524.6,2524.1,0.55]
[1729782211841,3.96113,2524.6,2524.3,0.7565]
[1729782212037,0.471108,2525.1,2524.4,0.55]
[1729782212464,3.96072,2524.8,2524.4,0.62921722]
[1729782212871,0.471108,2525.1,2524.3,0.7565]
[1729782213100,0.8162,2525.2,2524.3,0.7565]
[1729782213101,7.92225,2524.6,2524.3,0.7565]
[1729782213248,3.96128,2524.5,2524.3,0.7565]
[1729782213863,3.96105,2524.6,2524.3,0.7565]
[1729782214289,3.96081,2524.8,2524.4,0.55]
[1729782214443,3.96049,2525.0,2524.4,0.55]
[1729782214794,3.96049,2525.0,2524.6,0.55]
[1729782214948,3.96004,2525.3,2524.8,0.55]
[1729782215143,3.96004,2525.3,2524.8,0.62920617]
[1729782215346,3.96055,2524.9,2524.7,0.7924]
[1729782215541,7.92121,2524.9,2524.7,0.7924]
[1729782215745,3.96037,2525.1,2524.7,0.7924]
[1729782216681,7.92011,2525.3,2524.7,5.6325251]
[1729782216976,3.96009,2525.2,2524.8,0.55]
[1729782217487,0.7837,2525.5,2524.7,5.71178386]
[1729782217488,3.9603,2525.1,2524.7,1.6717551]
[1729782217647,3.9603,2525.1,2524.7,0.7924]
[1729782217648,3.96052,2525.0,2524.7,0.7924]
[1729782217851,5.95690266,2525.5,2524.5,0.8035]
[1729782218046,3.96064,2524.9,2524.6,0.55]
[1729782218742,3.96099,2524.7,2524.5,0.8035]
[1729782218948,3.96102,2524.6,2524.2,0.8035]
[1729782219176,4.77041,2525.0,2523.7,3.96236]
[1729782219177,0.7655,2524.5,2523.7,3.96236]
[1729782219384,3.96142,2524.4,2523.8,4.04144583]
[1729782219567,7.92288,2524.4,2523.8,3.96221]
[1729782219752,7.92288,2524.4,2523.9,0.7738]
[1729782219753,3.96142,2524.4,2523.9,0.7738]
[1729782219959,3.96142,2524.4,2524.0,0.48152449]
[1729782220465,3.96116,2524.6,2524.0,0.56075681]
[1729782220670,3.96116,2524.6,2524.0,0.48152449]
[1729782220671,3.96125,2524.5,2524.0,0.48152449]
[1729782220871,4.72633,2524.8,2524.1,0.62922611]
[1729782221084,3.96098,2524.7,2524.1,0.62922611]
[1729782221292,3.96098,2524.7,2524.2,1.28006906]
[1729782221579,3.96083,2524.8,2524.3,0.55]
[1729782221783,3.96088,2524.7,2524.3,0.6292186]
[1729782222080,3.96088,2524.7,2524.3,0.55]
[1729782222480,3.96083,2524.8,2524.3,0.55]
[1729782222782,3.96083,2524.8,2524.4,0.76916791]
[1729782222978,3.96083,2524.8,2524.2,8.24167906]
[1729782223186,3.96083,2524.8,2524.3,0.07921862]
[1729782223380,3.96082,2524.8,2524.3,0.07921862]
[1729782225049,3.96082,2524.8,2524.3,4.04067862]
[1729782225257,3.96051,2525.0,2524.3,0.07921862]
[1729782225471,3.96051,2525.0,2524.5,0.7561]
[1729782225790,3.96048,2525.0,2524.5,0.7561]
[1729782225992,3.96031,2525.1,2524.6,0.6292161]
[1729782226159,3.96049,2525.0,2524.6,0.55]
[1729782226346,3.96056,2524.9,2524.6,0.55]
[1729782226573,3.96034,2525.1,2524.5,4.71727]
[1729782226773,3.96034,2525.1,2524.6,0.55094067]
[1729782226974,3.96025,2525.1,2524.6,0.07921367]
[1729782227472,3.96003,2525.3,2524.7,3.96074]
[1729782227675,3.95971,2525.5,2524.8,0.07920772]
[1729782227973,0.8195,2525.6,2524.9,0.7823]
[1729782228208,3.96047,2525.0,2524.7,0.7823]
[1729782228513,3.96047,2525.0,2524.4,0.7823]
[1729782228716,3.96071,2524.8,2524.4,1.556683]
[1729782228872,3.96099,2524.7,2524.4,0.7823]
[1729782229076,3.96066,2524.9,2524.4,0.7823]
[1729782229273,3.96109,2524.6,2524.4,0.7823]
[1729782229473,3.96118,2524.5,2524.4,0.7823]
[1729782229676,3.96103,2524.6,2524.4,0.7823]
[1729782229879,3.96064,2524.9,2524.4,0.7823]
[1729782230214,0.471324,2524.9,2524.4,0.7823]
[1729782230388,3.96094,2524.7,2524.4,0.7823]
[1729782230585,3.96118,2524.5,2524.2,0.8106]
[1729782231412,0.7526,2525.1,2524.3,0.55]
[1729782231618,3.96072,2524.8,2524.3,0.62921908]
[1729782231914,3.96062,2524.9,2524.3,1.86552999]
[1729782232118,3.9608,2524.8,2524.3,1.86552999]
[1729782232413,3.96062,2524.9,2524.3,1.78631091]
[1729782232589,3.96062,2524.9,2524.4,0.07921549]
[1729782233309,3.96075,2524.8,2524.3,0.55]
[1729782233500,3.96099,2524.7,2524.3,0.55]
[1729782233884,3.96099,2524.7,2524.2,0.8106]
[1729782233885,3.96104,2524.6,2524.2,0.8106]
[1729782234333,7.92216,2524.6,2524.2,0.8106]
[1729782234623,3.96104,2524.6,2524.2,0.8106]
[1729782234830,3.96083,2524.8,2524.2,0.8106]
[1729782235123,0.7526,2525.1,2524.2,0.8106]
[1729782235124,3.96112,2524.6,2524.2,0.8106]
[1729782235335,3.96119,2524.5,2524.2,0.8106]
[1729782235538,3.96089,2524.7,2524.2,0.8106]
[1729782235539,3.96105,2524.6,2524.2,0.8106]
[1729782236188,3.96128,2524.5,2524.2,0.8106]
[1729782236390,3.96143,2524.4,2524.2,0.8106]
[1729782236584,3.96143,2524.4,2524.0,1.3246]
[1729782236789,3.96125,2524.5,2524.0,1.3246]
[1729782237015,3.96125,2524.5,2524.0,0.7746]
[1729782237016,3.9614,2524.4,2524.0,0.7746]
[1729782237754,3.96125,2524.5,2524.0,4.81577047]
[1729782237935,4.72775,2524.7,2524.0,6.39782808]
[1729782238227,3.96104,2524.6,2524.0,6.39782808]
[1729782238526,3.9604,2525.0,2524.0,6.39782808]
[1729782238527,3.96083,2524.8,2524.2,3.96157]
[1729782238731,3.96083,2524.8,2524.3,0.07922107]
[1729782238893,3.96049,2525.0,2524.3,0.07922107]
[1729782239089,3.96047,2525.0,2524.4,3.96132]
[1729782239304,3.96047,2525.0,2524.5,0.7636]
[1729782239802,3.96095,2524.7,2524.5,0.7636]
[1729782240009,3.96095,2524.7,2524.2,0.7636]
[1729782240207,7.92195,2524.7,2524.2,0.7636]
[1729782240396,3.96095,2524.7,2524.3,0.07922109]
[1729782240726,3.96066,2524.9,2524.3,0.07922109]
[1729782240928,3.96073,2524.8,2524.3,0.07922109]
[1729782241130,3.96055,2524.9,2524.4,0.7776]
[1729782243830,7.92224,2524.6,2524.1,0.7776]
[1729782244023,3.9611,2524.6,2524.1,0.7776]
[1729782244234,3.96118,2524.5,2524.1,0.7776]
[1729782244431,3.9611,2524.6,2524.1,0.7776]
[1729782244647,3.96119,2524.5,2524.1,0.7776]
[1729782245358,3.96105,2524.6,2524.1,0.7776]
[1729782245545,3.96118,2524.5,2524.1,0.7776]
[1729782246443,3.96157,2524.3,2524.1,0.7776]
[1729782246634,3.96136,2524.4,2524.1,0.7776]
[1729782246812,7.92284,2524.4,2524.1,0.7776]
[1729782247211,3.96136,2524.4,2524.1,0.7776]
[1729782248148,0.792223,2524.5,2524.1,0.7776]
[1729782248149,4.753423,2524.5,2524.1,0.7776]
[1729782248317,3.9612,2524.5,2524.1,0.7776]
[1729782248520,3.96133,2524.4,2524.1,0.7776]
[1729782248749,3.96071,2524.8,2524.1,0.7776]
[1729782248956,3.9612,2524.5,2524.1,0.7776]
[1729782249124,3.96097,2524.7,2524.2,0.07923153]
[1729782249311,3.96095,2524.7,2524.1,5.22121616]
[1729782249512,3.96095,2524.7,2524.2,0.07922471]
[1729782249750,3.96072,2524.8,2524.2,4.04079471]
[1729782250054,3.96062,2524.9,2524.4,0.7704]
[1729782250261,3.96087,2524.7,2524.4,0.7704]
[1729782250429,3.96106,2524.6,2524.4,0.7704]
[1729782250759,3.96128,2524.5,2524.2,0.7704]
[1729782251161,3.96149,2524.3,2524.2,0.7704]
[1729782251447,3.96183,2524.1,2523.9,0.757]
[1729782252219,3.96183,2524.1,2523.5,3.96273]
[1729782252220,3.96171,2524.2,2523.6,0.7885]
[1729782252455,3.96171,2524.2,2523.6,5.226128]
[1729782252639,3.96146,2524.4,2523.8,3.96227]
[1729782252963,3.96154,2524.3,2523.9,0.7885]
[1729782253253,3.96171,2524.2,2523.9,0.7885]
[1729782253628,3.96145,2524.4,2523.9,0.7885]
[1729782253629,3.96141,2524.4,2523.9,0.7885]
[1729782253843,3.9616,2524.3,2523.9,0.7885]
[1729782254155,3.96182,2524.1,2523.9,0.7885]
[1729782254539,3.96182,2524.1,2523.7,0.8175]
[1729782254710,7.92375,2524.1,2523.7,0.8175]
[1729782254915,3.96182,2524.1,2523.7,0.8175]
[1729782256111,7.92376,2524.1,2523.7,0.8175]
[1729782256366,4.830571,2524.1,2523.5,3.7989]
[1729782256526,3.96212,2523.9,2523.5,3.7989]
[1729782256728,3.96212,2523.9,2523.5,0.7989]
[1729782257033,3.96212,2523.9,2523.3,3.96295]
[1729782257034,3.96251,2523.7,2523.3,0.7989]
[1729782257844,3.9627,2523.6,2523.3,0.7989]
[1729782258044,0.396251,2523.7,2523.1,1.82323748]
[1729782258250,0.799,2523.8,2523.1,0.7989]
[1729782258251,3.96259,2523.6,2523.1,0.7989]
[1729782258566,3.96282,2523.5,2523.1,0.7989]
[1729782258716,3.9626,2523.6,2523.1,0.7989]
[1729782259363,3.9626,2523.6,2523.1,4.8414985]
[1729782260066,3.96246,2523.7,2523.1,8.8047285]
[1729782260226,3.96244,2523.7,2523.2,0.88047285]
[1729782260427,3.9626,2523.6,2523.2,0.55]
[1729782260727,3.9626,2523.6,2523.1,0.7989]
[1729782260728,3.96276,2523.5,2523.1,0.7989]
[1729782261321,3.9626,2523.6,2523.1,0.87815761]
[1729782261863,3.96238,2523.8,2523.3,3.96298]
[1729782262719,3.96206,2524.0,2523.2,0.55]
[1729782262955,3.96214,2523.9,2523.4,3.96281]
[1729782263258,0.7945,2524.1,2523.3,5.31166518]
[1729782263259,3.9618,2524.1,2523.5,4.51275]
[1729782263461,3.9618,2524.1,2523.6,4.04175166]
[1729782263750,0.396141,2524.4,2523.6,4.04175166]
[1729782263751,3.96166,2524.2,2523.7,4.77212]
[1729782263970,3.9615,2524.3,2523.8,0.48513617]
[1729782264136,3.96118,2524.5,2523.8,4.44730617]
[1729782264467,3.96135,2524.4,2524.0,0.8071]
[1729782264630,3.9615,2524.3,2524.0,0.8071]
[1729782265057,3.96166,2524.2,2524.0,0.8071]
[1729782265234,0.792316,2524.2,2523.7,0.7778]
[1729782265419,3.96187,2524.1,2523.7,0.7778]
[1729782265761,3.96176,2524.2,2523.7,0.7778]
[1729782265928,3.96176,2524.2,2523.8,0.07923838]
[1729782266454,3.96156,2524.3,2523.8,4.04143838]
[1729782266655,3.96136,2524.4,2523.9,0.8114]
[1729782266857,3.96166,2524.2,2523.9,0.8114]
[1729782267068,3.96181,2524.1,2523.9,0.8114]
[1729782267266,3.96183,2524.1,2523.6,0.7754]
[1729782267563,3.96219,2523.9,2523.6,0.7754]
[1729782268424,4.358113,2524.1,2523.6,0.7754]
[1729782268664,3.96198,2524.0,2523.6,0.7754]
[1729782269066,3.96191,2524.1,2523.6,0.7754]
[1729782269467,3.96191,2524.1,2523.6,4.73796]
[1729782269651,3.96159,2524.3,2523.7,3.96236]
[1729782269970,3.96134,2524.4,2523.9,0.8198]
[1729782270139,3.96172,2524.2,2523.9,0.8198]
[1729782270462,0.8051,2524.5,2523.9,0.8198]
[1729782270763,3.96135,2524.4,2523.9,4.78182]
[1729782270934,3.96135,2524.4,2523.9,5.71927156]
[1729782271534,7.92253,2524.5,2523.9,5.71927156]
[1729782271742,3.96124,2524.5,2524.0,0.07923181]
[1729782271940,3.96098,2524.7,2524.0,0.07923181]
[1729782272271,3.96052,2525.0,2524.3,4.51141]
[1729782272480,3.96052,2525.0,2524.3,5.52933953]
[1729782272776,3.96052,2525.0,2524.4,4.76333]
[1729782272777,3.96047,2525.0,2524.4,4.76333]
[1729782273079,3.96047,2525.0,2524.5,4.04035493]
[1729782273441,3.96047,2525.0,2524.5,0.07921493]
[1729782273643,0.8283,2525.3,2524.5,0.55]
[1729782273842,3.96081,2524.8,2524.4,0.8021]
[1729782274047,7.92164,2524.8,2524.4,0.8021]
[1729782274241,3.96099,2524.7,2524.4,0.8021]
[1729782274439,3.96118,2524.5,2524.4,0.8021]
[1729782274676,8.00247562,2525.4,2524.4,0.8021]
[1729782274677,3.96086,2524.7,2524.4,0.8021]
[1729782274829,3.96115,2524.6,2524.4,0.8021]
[1729782275483,3.96086,2524.7,2524.4,0.8021]
[1729782275843,3.96137,2524.4,2524.0,0.8225]
[1729782276246,3.96137,2524.4,2524.0,0.90173095]
[1729782276650,3.96118,2524.5,2524.0,0.90173095]
[1729782276854,3.96126,2524.5,2524.0,0.90173095]
[1729782277345,3.96126,2524.5,2524.0,4.86367095]
[1729782277682,0.472646,2524.7,2524.0,4.86367095]
[1729782277683,3.96141,2524.4,2524.0,0.90173095]
[1729782277986,4.357481,2524.4,2524.0,0.8225]
[1729782278186,3.96134,2524.4,2524.0,0.90173098]
[1729782278384,3.96134,2524.4,2524.0,0.8225]
[1729782278687,3.96124,2524.5,2524.0,0.90173099]
[1729782278851,3.96124,2524.5,2524.0,4.86368099]
[1729782279048,3.96145,2524.4,2524.0,0.90173099]
[1729782279272,0.792269,2524.4,2524.0,0.8225]
[1729782279475,4.433606,2524.7,2524.0,0.8225]
[1729782279676,3.96149,2524.3,2524.0,0.8225]
[1729782280150,3.96136,2524.4,2524.0,0.8225]
[1729782280344,3.96153,2524.3,2524.0,0.8225]
[1729782280661,3.96136,2524.4,2524.0,0.8225]
[1729782280865,3.96167,2524.2,2524.0,0.8225]
[1729782281091,3.96158,2524.3,2524.0,0.8225]
[1729782281790,3.96172,2524.2,2524.0,0.8225]
[1729782282286,3.96158,2524.3,2524.0,0.8225]
[1729782282648,3.96164,2524.3,2524.0,0.8225]
[1729782283065,3.96149,2524.3,2524.0,0.8225]
[1729782283373,3.96192,2524.1,2523.7,0.8031]
[1729782283574,3.96188,2524.1,2523.7,0.8031]
[1729782284387,3.9621,2524.0,2523.7,0.8031]
[1729782284563,0.8082,2524.0,2523.4,0.8031]
[1729782284764,3.96252,2523.7,2523.2,0.8031]
[1729782284964,3.96261,2523.6,2523.2,0.88235587]
[1729782285203,3.96278,2523.5,2523.2,0.8031]
[1729782285826,3.96293,2523.4,2523.2,0.8031]
[1729782286365,3.96275,2523.5,2523.2,0.8031]
[1729782286997,3.96261,2523.6,2523.2,0.8031]
[1729782288974,3.96174,2524.2,2523.4,4.04269562]
[1729782289174,3.96208,2524.0,2523.6,0.7727]
[1729782289576,3.96213,2523.9,2523.6,0.7727]
[1729782289790,3.96198,2524.0,2523.6,0.7727]
[1729782290211,3.96178,2524.2,2523.6,1.25418368]
[1729782290378,3.96193,2524.1,2523.6,5.21675368]
[1729782290769,0.8,2524.5,2523.6,0.7727]
[1729782290962,3.96206,2524.0,2523.6,0.7727]
[1729782291683,3.96205,2524.0,2523.6,0.7727]
[1729782292215,3.96212,2523.9,2523.6,0.7727]
[1729782292393,3.96228,2523.8,2523.4,3.7831]
[1729782292594,0.792417,2523.9,2523.4,0.7831]
[1729782292794,3.96275,2523.5,2523.1,0.7831]
[1729782293308,0.792417,2523.9,2523.1,4.82559825]
[1729782293309,3.96254,2523.7,2523.1,4.82559825]
[1729782293496,3.96262,2523.6,2523.1,4.82559825]
[1729782293979,3.96262,2523.6,2523.2,3.96322]
[1729782294180,3.96262,2523.6,2523.1,4.74645]
[1729782294370,3.96262,2523.6,2523.1,4.8257082]
[1729782294572,3.96262,2523.6,2523.2,3.96321]
[1729782295310,4.4379357,2523.7,2523.1,4.8257282]
[1729782295482,3.96269,2523.6,2523.1,4.8257282]
[1729782296312,8.4005157,2523.7,2523.2,3.9632]
[1729782296630,3.96269,2523.6,2523.1,4.74647]
[1729782296911,3.96269,2523.6,2523.1,4.82572824]
[1729782297293,3.96269,2523.6,2523.1,4.74647]
[1729782297495,3.96269,2523.6,2523.1,4.82572834]
[1729782297925,3.96269,2523.6,2523.1,8.78902834]
[1729782298121,3.96269,2523.6,2523.1,8.70977]
[1729782298920,7.9254,2523.6,2523.1,4.7464]
[1729782299112,3.96269,2523.6,2523.1,4.82565828]
[1729782299327,0.4754957,2523.7,2523.2,3.96317]
[1729782299617,4.4379557,2523.7,2523.2,3.96317]
[1729782299917,3.96238,2523.8,2523.3,4.59221677]
[1729782300120,3.96238,2523.8,2523.3,4.51296]
[1729782301180,3.96254,2523.7,2523.2,3.96314]
[1729782301379,3.96254,2523.7,2523.2,3.96322]
[1729782301987,3.96254,2523.7,2523.2,4.04247555]
[1729782302319,3.96221,2523.9,2523.3,0.07925574]
[1729782302524,0.8191,2524.0,2523.2,5.24637112]
[1729782302525,3.96234,2523.8,2523.2,5.24637112]
[1729782302683,0.8191,2524.0,2523.2,5.24629112]
[1729782302879,3.96229,2523.8,2523.3,3.96299]
[1729782303081,3.96227,2523.8,2523.1,0.7831]
[1729782303386,3.96313,2523.3,2523.1,0.7831]
[1729782303885,3.96283,2523.5,2523.1,0.7831]
[1729782304318,3.9629,2523.4,2523.1,0.7831]
[1729782304890,3.96281,2523.5,2523.1,0.7831]
[1729782305135,4.79087,2523.6,2523.1,4.74645]
[1729782305335,3.96277,2523.5,2523.1,0.8623602]
[1729782305487,3.96265,2523.6,2523.1,4.74647]
[1729782305680,7.92534,2523.6,2523.1,4.74647]
[1729782306306,3.96281,2523.5,2523.1,0.7831]
[1729782307125,3.96281,2523.5,2523.1,4.74647]
[1729782307329,3.96281,2523.5,2523.1,4.82572962]
[1729782307487,0.792439,2523.7,2523.1,0.7831]
[1729782307687,3.96275,2523.5,2523.1,0.7831]
[1729782308126,3.96368,2523.0,2522.8,0.8053]
[1729782308421,3.96368,2523.0,2522.5,3.8235771]
[1729782308422,3.96381,2522.9,2522.5,0.7861]
[1729782308630,0.7517,2523.3,2522.5,0.7861]
[1729782308943,3.96402,2522.7,2522.3,0.7861]
[1729782309387,3.96438,2522.5,2522.3,0.7861]
[1729782309582,3.96447,2522.4,2522.3,0.7861]
[1729782309787,3.96447,2522.4,2522.0,0.768]
[1729782310518,3.96438,2522.5,2522.0,0.768]
[1729782310713,3.96471,2522.3,2522.0,0.768]
[1729782310914,3.96442,2522.5,2522.0,4.81069562]
[1729782311292,3.96442,2522.5,2522.1,3.9649]
[1729782311533,7.92884,2522.5,2522.0,8.77571562]
[1729782311693,3.96464,2522.3,2522.0,0.768]
[1729782311894,3.9649,2522.2,2521.8,4.85729562]
[1729782312096,3.96526,2521.9,2521.8,0.8146]
[1729782312320,3.96506,2522.1,2521.5,0.8266]
[1729782312719,3.96527,2521.9,2521.5,0.8266]
[1729782312924,3.96542,2521.8,2521.5,0.8266]
[1729782313237,3.96527,2521.9,2521.3,0.8266]
[1729782313238,3.9658,2521.6,2521.3,0.8266]
[1729782313398,3.96562,2521.7,2521.3,0.8266]
[1729782314636,3.96586,2521.6,2521.2,4.04269562]
[1729782314813,7.93169,2521.6,2521.1,4.76168]
[1729782314996,4.839524,2521.7,2521.1,0.7952]
[1729782315204,3.96586,2521.6,2521.1,0.7952]
[1729782315413,0.7895,2521.4,2520.9,0.7952]
[1729782315617,3.96621,2521.3,2520.9,0.7952]
[1729782315846,7.93253,2521.3,2520.9,0.7952]
[1729782316136,3.96621,2521.3,2520.9,0.7952]
[1729782316636,3.96621,2521.3,2520.9,4.762]
[1729782316867,3.966,2521.5,2521.0,3.96661]
[1729782317040,3.96598,2521.5,2521.0,3.96661]
[1729782317571,3.96574,2521.6,2521.1,3.96649]
[1729782317771,5.628964,2521.7,2521.2,3.96628]
[1729782317925,5.628964,2521.7,2521.3,3.96619]
[1729782317926,0.873794,2521.7,2521.3,3.96619]
[1729782318121,3.9656,2521.7,2521.3,0.7952]
[1729782318363,7.93133,2521.7,2521.3,0.7952]
[1729782318561,3.96574,2521.6,2521.3,0.7952]
[1729782319065,3.96581,2521.6,2521.1,0.7952]
[1729782319268,3.96567,2521.7,2521.1,0.7952]
[1729782319428,4.362237,2521.7,2521.1,4.7616]
[1729782319627,3.96536,2521.9,2521.2,4.04269562]
[1729782319937,3.96536,2521.9,2521.4,3.96596]
[1729782320249,3.96542,2521.8,2521.2,4.04269562]
[1729782320453,3.96568,2521.7,2521.1,0.7952]
[1729782320662,3.96542,2521.8,2521.1,0.7952]
[1729782320663,3.96542,2521.8,2521.2,3.96624]
[1729782320868,3.96526,2521.9,2521.2,0.07931813]
[1729782321068,3.96526,2521.9,2521.1,0.7952]
[1729782321427,3.96606,2521.4,2521.1,0.7952]
[1729782321628,3.96622,2521.3,2521.1,0.7952]
[1729782321870,3.96622,2521.3,2520.9,0.8087]
[1729782322055,3.96645,2521.2,2520.9,0.8087]
[1729782323825,3.96661,2521.1,2520.9,0.8087]
[1729782324147,3.96661,2521.1,2520.7,7.78853]
[1729782324380,3.96637,2521.2,2520.7,7.78853]
[1729782324587,3.96637,2521.2,2520.7,11.7556]
[1729782324908,3.9662,2521.3,2520.8,8.00956562]
[1729782326184,3.9662,2521.3,2520.7,7.78846]
[1729782326396,3.96654,2521.1,2520.7,0.8214]
[1729782326773,4.36293,2521.3,2520.7,4.78853]
[1729782327116,4.36291,2521.3,2520.8,3.96694]
[1729782328121,4.36291,2521.3,2520.9,3.96682]
[1729782328318,3.96629,2521.3,2520.8,3.96699]
[1729782328610,3.96637,2521.2,2520.8,3.96699]
[1729782328813,3.96661,2521.1,2520.7,0.8214]
[1729782329025,3.96676,2521.0,2520.7,0.8214]
[1729782329316,3.96676,2521.0,2520.3,0.62073516]
[1729782329317,3.96733,2520.6,2520.4,0.62084331]
[1729782329515,3.13999834,2520.6,2520.4,0.62084331]
[1729782329835,3.13999834,2520.6,2520.2,3.96792]
[1729782330177,3.13999834,2520.6,2520.1,4.75077]
[1729782330522,7.10739834,2520.6,2520.1,4.75077]
[1729782330673,3.13999834,2520.6,2520.1,0.7827]
[1729782330879,3.96756,2520.5,2520.1,0.7827]
[1729782331095,3.96764,2520.4,2520.1,0.7827]
[1729782331503,0.7544,2520.3,2519.7,0.62096264]
[1729782331718,3.96802,2520.2,2519.7,3.96871]
[1729782331948,3.96833,2520.0,2519.5,4.9010908]
[1729782332337,3.96812,2520.1,2519.5,5.78812288]
[1729782332722,3.96825,2520.0,2519.5,5.78811288]
[1729782333150,3.96819,2520.1,2519.6,3.96887]
[1729782334255,3.96796,2520.2,2519.6,3.96887]
[1729782334461,0.8303,2520.7,2520.1,3.96807]
[1729782334609,4.79752,2520.7,2520.2,3.96784]
[1729782334963,4.79698,2521.0,2520.5,3.96733]
[1729782335311,3.96664,2521.1,2520.5,3.96733]
[1729782335635,3.9667,2521.0,2520.5,3.96733]
[1729782335959,7.93329,2521.1,2520.5,3.96733]
[1729782336462,7.93267,2521.3,2520.7,3.96699]
[1729782336620,7.93267,2521.3,2520.7,4.815414]
[1729782336971,0.7603,2521.5,2520.7,4.815414]
[1729782337179,3.96656,2521.1,2520.7,4.815414]
[1729782337470,3.96656,2521.1,2520.4,3.96747]
[1729782337674,3.96699,2520.9,2520.4,0.07934453]
[1729782337826,3.96715,2520.7,2520.3,4.74833]
[1729782338027,3.96715,2520.7,2520.4,0.5541921]
[1729782338275,3.96744,2520.6,2520.3,0.7807]
[1729782338428,0.7981,2521.0,2520.0,0.8242]
[1729782338429,3.96771,2520.4,2520.0,0.8242]
[1729782339038,3.9676,2520.5,2520.0,4.79244]
[1729782339239,3.96763,2520.4,2520.0,4.79244]
[1729782339671,3.96756,2520.5,2520.0,5.668537]
[1729782339885,3.96756,2520.5,2520.0,5.668457]
[1729782340036,7.93453,2520.7,2520.2,3.9679]
[1729782340241,3.96738,2520.6,2520.2,3.96792]
[1729782340581,3.96738,2520.6,2520.1,3.96802]
[1729782340876,3.9676,2520.5,2520.0,5.668527]
[1729782341086,3.96738,2520.6,2520.1,0.9636837]
[1729782341245,3.96716,2520.7,2520.1,0.9636837]
[1729782341451,3.96731,2520.6,2520.1,3.96809]
[1729782341638,3.96731,2520.6,2520.2,3.96793]
[1729782341971,3.96699,2520.8,2520.0,0.8242]
[1729782342149,3.96757,2520.5,2520.0,4.79235]
[1729782342353,3.96757,2520.5,2520.1,3.96808]
[1729782342543,3.96756,2520.5,2520.1,1.28033656]
[1729782342744,4.78546,2520.5,2519.9,3.96839]
[1729782343083,3.96832,2520.0,2519.6,3.0]
[1729782343378,3.96857,2519.8,2519.5,1.76330288]
[1729782343675,3.96845,2519.9,2519.5,4.0934708]
[1729782343974,4.77446,2520.0,2519.5,4.0934708]
[1729782344348,0.8062,2520.0,2519.5,4.0934708]
[1729782344552,4.77445,2520.0,2519.5,8.0624008]